Workbook

Sheet от 1года до 3 лет
A1: Утверждаю | H1: Согласовано
A2: Директор ООО"АБК - Пэймент" | H2: Руководитель дошкольной образовательной
A3: Рахматуллин Р.Р. | H3: организации
E5: Примерное 10-дневное меню
E6: для организации питания детей в дошкольных учреждениях
E7: с 12 - часовым пребыванием от 1 года до 3 лет
A8: День 1 - ый
A9: Наименование блюд и | C9: Масса | D9: Кол - во | E9: Кол - во | F9: Пищевые вещества | I9: Энергетическая | J9: витамин | K9: Сборник
A10: продуктов | C10: порции | D10: (в гр ) | E10: (в гр ) | I10: ценность | K10: рецептур
D11: брутто | E11: нетто | F11: белки | G11: жиры | H11: угл-ды | I11: Ккал | J11: С
A13: Каша "Дружба" молочная с маслом сливочным | C13: 140/3 | F13: 3.80 | G13: 3.26 | H13: 22.56 | I13: 136.02 | J13: 0.60 | K13: ТТК №7Д
B14: Крупа рисовая | D14: 10 | E14: 10
B15: Крупа пшенная | D15: 7.5 | E15: 7.5
B16: Молоко | D16: 75 | E16: 75
B17: Вода | D17: 48 | E17: 48
B18: Сахар | D18: 2 | E18: 2
B19: соль иодированная | D19: 0.4 | E19: 0.4
B20: Масло сливочное | D20: 3 | E20: 3
A21: Кофейный напиток с молоком | C21: 180 | F21: 2.85 | G21: 2.41 | H21: 5.99 | I21: 42.67 | J21: 1.17 | K21: №395Дели2010
B22: Кофейный напиток | D22: 2.5 | E22: 2.5
B23: Сахар | D23: 6 | E23: 6
B24: Молоко | D24: 90 | E24: 90
B25: Вода | D25: 108 | E25: 108
A26: Бутерброд с маслом сливочным | C26: 25/5 | F26: 1.92 | G26: 4.36 | H26: 12.92 | I26: 98.50 | K26: №1 Дели2010
B27: Батон нарезной | D27: 25 | E27: 25
B28: Масло сливочное | D28: 5 | E28: 5
A29: Итого: | C29: 353 | F29: =F13+F21+F26 -> 8.57 | G29: =G13+G21+G26 -> 10.03 | H29: 41.47 | I29: 277.19 | J29: 1.77
B30: 2 - ой ЗАВТРАК
A31: Сок | C31: 200 | D31: 200 | E31: 200 | F31: 1.00 | G31: 0.00 | H31: 20.20 | I31: 85.34 | J31: 4.00 | K31: №418 Дели2016
A32: в ассортименте в инд.упаковке
A33: Итого: | C33: 200 | F33: =F31 -> 1.00 | G33: =G31 -> 0.00 | H33: 20.20 | I33: 85.34 | J33: 4.00
B34: ОБЕД
A35: Салат из моркови с яблоками | C35: 40 | F35: 0.43 | G35: 0.07 | H35: 3.45 | I35: 16.16 | J35: 2.50 | K35: №39,сб дошк2016
B36: морковь | D36: 37.50 | E36: 30.00
B37: яблоки | D37: 11.40 | E37: 10.00
B38: сахар | D38: 0.40 | E38: 0.40
A39: Суп картофельный с куриными фрикадельками | C39: 150/10 | F39: 2.82 | G39: 2.96 | H39: 10.86 | I39: 81.25 | J39: 7.24 | K39: №83 СБ дошк 2016
B40: цыплята - бройлеры с/м | D40: 17.5 | E40: 11.4
B41: или фарш куриный | D41: 11.97 | E41: 11.4
B42: Лук репчатый | D42: 1.19 | E42: 1
B43: Яйцо | D43: 0.96 | E43: 0.8
B44: Вода для фарша | D44: 1 | E44: 1
B45: соль иодированная | D45: 0.1 | E45: 0.1
B46: масса готовых фрикаделек | E46: 10
B47: Картофель | D47: 90.00 | E47: 67.50
B48: Морковь | D48: 7.50 | E48: 6.00
B49: Лук репчатый | D49: 7.14 | E49: 6.00
B50: Масло растительное | D50: 1.50 | E50: 1.50
B51: соль иодированная | D51: 0.50 | E51: 0.50
B52: Вода | D52: 105.00 | E52: 105.00
A53: Котлеты рубленные из говядины | C53: 50 | F53: 5.74 | G53: 7.64 | H53: 6.54 | I53: 128.00 | K53: СБ дошкольн. №299, 2016
B54: говядина (котлетное мясо б/к) | D54: 36.57 | E54: 35
B55: или фарш говяжий | D55: 36.75 | E55: 35
B56: лук репчатый | D56: 10.4 | E56: 8.75
B57: Хлеб пшеничный | D57: 8.13 | E57: 8.13
B58: Вода | D58: 5.2 | E58: 5.2
B59: сухари панировочные | D59: 2.8 | E59: 2.8
B60: соль иодированная | D60: 0.4 | E60: 0.4
B61: масса полуфабриката | E61: 61.9
B62: Масло растительное | D62: 0.60 | E62: 0.60
A63: Капуста тушеная | C63: 120 | F63: 2.45 | G63: 4.42 | H63: 9.47 | I63: 92.40 | J63: 20.50 | K63: №354 сбдошк2016
B64: Капуста свежая | D64: 172.00 | E64: 137.60
B65: Лук репчатый | D65: 5.71 | E65: 4.80
B66: Морковь | D66: 3.00 | E66: 2.40
B67: Мука пшеничная | D67: 1.44 | E67: 1.44
B68: Масло растительное | D68: 4.20 | E68: 4.20
B69: Сахар | D69: 0.90 | E69: 0.90
B70: соль иодированная | D70: 0.45 | E70: 0.45
A71: Напиток из сухофруктов | C71: 150 | F71: 0.50 | G71: 0.07 | H71: 17.34 | I71: 57 | J71: 0.54 | K71: №394 Сб дошк 2016
B72: сухофрукты | D72: 12.75 | E72: 12.50
B73: Сахар | D73: 5.00 | E73: 5.00
B74: вода | D74: 152.00 | E74: 152.00
A75: Хлеб ржаной | C75: 40 | D75: 40 | E75: 40 | F75: 2.64 | G75: 0.48 | H75: 15.85 | I75: 79.28 | K75: табл 6 стр 144,Дели + 2012
A76: Итого: | C76: 560.00 | F76: =F35+F39+F53+F63+F71+F75 -> 14.58 | G76: =G35+G39+G53+G63+G71+G75 -> 15.64 | H76: 63.50 | I76: 453.91 | J76: 30.78
B77: ПОЛДНИК
A78: Кисломолочный напиток | C78: 150/2 | F78: 4.35 | G78: 3.75 | H78: 9.98 | I78: 82.98 | J78: 1.05 | K78: №420 Сб дошк 2016
A79: (Кефир,ряженка,катык,напиток ацидофильный/йогурт) | B79: кисломолочный напиток | D79: 155 | E79: 150
B80: сахар | D80: 2 | E80: 2
A81: Кондитерское изделие | B81: вафли | C81: 20 | D81: 20.00 | E81: 20.00 | F81: 0.78 | G81: 6.12 | H81: 12.50 | I81: 108.40 | K81: табл 6 стр 136,Ддели +,2012
A82: Итого: | C82: 172 | F82: =F78+F81 -> 5.13 | G82: =G78+G81 -> 9.87 | H82: 22.48 | I82: 191.38 | J82: 1.05
B83: УЖИН
A84: Пудинг рыбный | C84: 45/15 | F84: 7.40 | G84: 6.45 | H84: 13.52 | I84: 142.85 | J84: 0.32 | K84: №286 СБ дошк 2016
B85: рыба (минтай с/м БГ) | D85: 51.54 | E85: 37.9
B86: масса отварной рыбы | E86: 30
B87: Хлеб пшеничный | D87: 6.2 | E87: 6.2
B88: яйцо | D88: 4.8 | E88: 4
B89: молоко | D89: 9 | E89: 9
B90: масло сливочное | D90: 1.7 | E90: 1.7
B91: соль иодированная | D91: 0.3 | E91: 0.3
B92: Масло растительное | D92: 0.8 | E92: 0.8
B93: масса пудинга | E93: 45
B94: Соус молочный
B95: молоко | D95: 7.5 | E95: 7.5
B96: масло сливочное | D96: 0.8 | E96: 0.8
B97: Мука пшеничная | D97: 0.8 | E97: 0.8
B98: Вода | D98: 7.5 | E98: 7.5
B99: Сахар | D99: 0.15 | E99: 0.15
B100: соль иодированная | D100: 0.09 | E100: 0.09
B101: масса соуса | E101: 15
A102: Пюре Картофельное | C102: 120 | F102: 2.47 | G102: 3.86 | H102: 21.62 | I102: 127.72 | J102: 14.53 | K102: № 339 СБ дошк 2016
B103: Картофель | D103: 136.80 | E103: 102.60
B104: Молоко | D104: 18.96 | E104: 18.00
B105: Масло сливочное | D105: 4.20 | E105: 4.20
B106: соль иодированная | D106: 0.45 | E106: 0.45
A107: Чай с сахаром | C107: 150/5 | F107: 0.04 | G107: 0.01 | H107: 5.01 | I107: 19.95 | J107: 0.02 | K107: №392 Дели2010
B108: чай весовой | D108: 0.4 | E108: 0.4
B109: Сахар | D109: 5 | E109: 5
B110: Вода | D110: 150 | E110: 150
A111: Хлеб пшеничный | C111: 30 | D111: 30.00 | E111: 30.00 | F111: 2.28 | G111: 0.24 | H111: 14.77 | I111: 70.57 | J111: 0.00 | K111: табл 6 стр 134,Дели + 2012
A112: Итого: | C112: 527.00 | F112: =F84+F102+F107+F111 -> 12.19 | G112: =G84+G102+G107+G111 -> 10.57 | H112: 54.93 | I112: 361.09 | J112: 14.87
A113: ВСЕГО: | C113: =C29+C33+C76+C82+C112 -> 1812.00 | F113: =F29+F33+F76+F82+F112 -> 41.47 | G113: 46.11 | H113: 202.58 | I113: =I29+I33+I76+I82+I112 -> 1368.91 | J113: 52.47
A115: День 2- ой
A116: Наименование блюд и | C116: Масса | D116: Кол - во | E116: Кол - во | F116: Пищевые вещества | I116: Энергетическая | J116: Витамин | K116: Сборник
A117: продуктов | C117: порции | D117: (в гр ) | E117: (в гр ) | I117: ценность | K117: рецептур
D118: брутто | E118: нетто | F118: белки | G118: жиры | H118: угл-ды | I118: Ккал | J118: С
B119: ЗАВТРАК
A120: Каша полбяная молочная с маслом сливочным | C120: 140/3 | F120: 2.21 | G120: 2.02 | H120: 24.11 | I120: 123.31 | J120: 0.67 | K120: ТТК №1Д
B121: Крупа полбяная | D121: 18 | E121: 18
B122: Молоко | D122: 70 | E122: 70
B123: вода | D123: 53 | E123: 53
B124: Сахар | D124: 2 | E124: 2
B125: соль иодированная | D125: 0.4 | E125: 0.4
B126: Масло сливочное | D126: 3 | E126: 3
A127: Какао с молоком | C127: 180 | F127: 3.67 | G127: 3.19 | H127: 5.99 | I127: 58.83 | J127: 1.43 | K127: №397 Дели2010
B128: Какао-порошок | D128: 2 | E128: 2
B129: Сахар | D129: 6 | E129: 6
B130: Молоко | D130: 110 | E130: 110
B131: Вода | D131: 80 | E131: 80
A132: Бутерброд с сыром, маслом сливочным | C132: 25/10/5 | F132: 4.58 | G132: 6.39 | H132: 12.26 | I132: 124.74 | J132: 0.04 | K132: №3 сб дошк2016
B133: Батон нарезной | D133: 25 | E133: 25
B134: Сыр | D134: 10.2 | E134: 10
B135: Масло сливочное | D135: 5 | E135: 5
A136: Итого: | C136: 363 | F136: =F120+F127+F132 -> 10.46 | G136: =G120+G127+G132 -> 11.60 | H136: 42.36 | I136: 306.88 | J136: 2.14
B137: 2 - ой ЗАВТРАК
A138: Фрукты свежие | C138: 100 | D138: 100 | E138: 100 | F138: 0.40 | G138: 0.40 | H138: 9.80 | I138: 47.00 | J138: 10.00 | K138: №386 СБ
A139: (яблоки,или апельсин, или банан,или мандарин ) | K139: дошк.2016
A140: Итого: | C140: 100 | F140: =F138 -> 0.40 | G140: =G138 -> 0.40 | H140: 9.80 | I140: 47.00 | J140: 10.00
B141: ОБЕД
A142: Салат из картофеля с солеными огурцами | C142: 40 | F142: 0.49 | G142: 3.14 | H142: 3.58 | I142: 44.56 | J142: 2.41 | K142: №23 сб дошк2016
B143: огурцы соленые | D143: 21.84 | E143: 12.00
B144: картофель | D144: 21.92 | E144: 16.00
B145: морковь | D145: 10.24 | E145: 8.00
B146: лук репчатый | D146: 2.40 | E146: 2.00
B147: масло растительное | D147: 2.00 | E147: 2.00
A148: Борщ со свежей капустой, картофелем на курином бульоне,со сметаной | C148: 150/7 | F148: 1.86 | G148: 4.00 | H148: 6.81 | I148: 73.55 | J148: 6.43 | K148: №110,сбшк2004
B149: Капуста свежая | D149: 15.0 | E149: 12.0
B150: Картофель | D150: 15.96 | E150: 12.0
B151: Морковь | D151: 7.5 | E151: 6.0
B152: Лук репчатый | D152: 7.14 | E152: 6.0
B153: Свекла | D153: 30.72 | E153: 24.0
B154: Сахар | D154: 1.8 | E154: 1.8
B155: Масло растительное | D155: 3.0 | E155: 3.0
B156: соль иодированная | D156: 1.5 | E156: 1.5
B157: Бульон | D157: 120 | E157: 120.0
B158: Сметана | D158: 7.0 | E158: 7.0
B159: Томатная паста | D159: 0.8 | E159: 0.8
A160: Плов из отварной птицы | C160: 150 | F160: 8.91 | G160: 8.22 | H160: 23.16 | I160: 212.45 | J160: 0.13 | K160: №443 сбшк2004
B161: цыплята - бройлер с/м | D161: 67.20 | E161: 63.0
B162: масса отварной мякоти птицы | E162: 27.0
B163: масло сливочное | D163: 5.0 | E163: 5.0
B164: Лук репчатый | D164: 8.9 | E164: 7.5
B165: Морковь | D165: 12.5 | E165: 10.0
B166: Крупа рисовая | D166: 32.0 | E166: 32.0
B167: вода | D167: 65.0 | E167: 65.0
B168: соль иодированная | D168: 0.3 | E168: 0.3
B169: масса гарнира | E169: 125.0
A170: Кисель | C170: 150 | F170: 0.43 | G170: 0.04 | H170: 9.67 | I170: 40.78 | J170: 0.82 | K170: №648 сбшк2004
B171: Кисель-концентрат | D171: 17.5 | E171: 17.5
B172: Сахар | D172: 5 | E172: 5
B173: вода | D173: 150 | E173: 150
A174: Хлеб ржаной | C174: 40 | D174: 40 | E174: 40 | F174: 2.64 | G174: 0.48 | H174: 15.85 | I174: 79.28 | K174: табл 6 стр 144,Дели + 2012
A175: Итого: | C175: 537 | F175: =F142+F148+F160+F170+F174 -> 14.33 | G175: =G142+G148+G160+G170+G174 -> 15.88 | H175: 59.07 | I175: 450.62 | J175: 9.79
B176: ПОЛДНИК
A177: Кисломолочный напиток | C177: 150 | F177: 4.35 | G177: 3.75 | H177: 6.30 | I177: 76.00 | J177: 0.45 | K177: №420 Сб дошк 2016
A178: (кефир,ряженка,катык,напиток ацидофильный/йогурт) | B178: кисломолочный напиток | D178: 155 | E178: 150
A179: Булочка дорожная | C179: 50 | F179: 3.39 | G179: 6.98 | H179: 21.07 | I179: 160.50 | K179: №453 сб дошк2016
B180: Мука пшеничная | D180: 30.50 | E180: 30.00
B181: мука пшеничная на подпыл | D181: 1.00 | E181: 1.00
B182: Сахар | D182: 6.00 | E182: 6.00
B183: Масло сливочное | D183: 6.50 | E183: 6.50
B184: соль иодированная | D184: 0.30 | E184: 0.30
B185: дрожжи сухие | D185: 0.20 | E185: 0.20
B186: вода | D186: 15.30 | E186: 15.30
B187: масса полуфабриката | E187: 57.00
B188: для крошки:
B189: мука пшеничная | D189: 1.20 | E189: 1.20
B190: масло сливочное | D190: 1.00 | E190: 1.00
B191: масса крошки | E191: 2.00
B192: масло растительное для смазки изделй | D192: 1.00 | E192: 1.00
A193: Итого: | C193: 200 | F193: =F177+F179 -> 7.74 | G193: =G177+G179 -> 10.73 | H193: 27.37 | I193: 236.50 | J193: 0.45
B194: УЖИН
A195: Запеканка творожная с повидлом | C195: 110/20 | F195: 8.41 | G195: 8.75 | H195: 21.93 | I195: 237.04 | J195: 0.61 | K195: № 251 сб дошк 2016
B196: Творог | D196: 103.2 | E196: 101.2
B197: крупа манная | D197: 6.6 | E197: 6.6
B198: Яйцо | D198: 5.28 | E198: 4.4
B199: Сахар | D199: 8.8 | E199: 8.8
B200: Сметана | D200: 4.4 | E200: 4.4
B201: Масло сливочное | D201: 4.4 | E201: 4.4
B202: Сухари панировочные | D202: 4.4 | E202: 4.4
B203: соль иодированная | D203: 0.55 | E203: 0.55
... 828 more rows

Sheet от 3 до 7 лет
A1: Утверждаю | H1: Согласовано
A2: Директор ООО"АБК - Пэймент" | H2: Руководитель дошкольной образовательной
A3: Рахматуллин Р.Р. | H3: организации
C5: Примерное 10-дневное меню
C6: для организации питания детей в дошкольных учреждениях
C7: с 12 - часовым пребыванием от 3 до 7 лет
A8: День 1 - ый
A9: Наименование блюд и | C9: Масса | D9: Кол - во | E9: Кол - во | F9: Пищевые вещества | I9: Энергетическая | J9: Витамин | K9: Сборник рецептур
A10: продуктов | C10: порции | D10: (в гр ) | E10: (в гр ) | I10: ценность
D11: брутто | E11: нетто | F11: белки | G11: жиры | H11: угл-ды | I11: Ккал | J11: С
B12: ЗАВТРАК
A13: Каша "Дружба" молочная с маслом сливочным | C13: 180/5 | F13: 5.44 | G13: 7.07 | H13: 28.40 | I13: 202.64 | J13: 0.86 | K13: ТТК №7Д
B14: Крупа рисовая | D14: 13.50 | E14: 13.50
B15: Крупа пшенная | D15: 10.00 | E15: 10.00
B16: Молоко | D16: 90.00 | E16: 90.00
B17: Вода | D17: 68.00 | E17: 68.00
B18: Сахар | D18: 2.50 | E18: 2.50
B19: соль иодированная | D19: 0.50 | E19: 0.50
B20: Масло сливочное | D20: 5 | E20: 5
A21: Кофейный напиток с молоком | C21: 180 | F21: 2.85 | G21: 2.41 | H21: 5.99 | I21: 42.67 | J21: 1.17 | K21: №395 Дели2010
B22: Кофейный напиток | D22: 2.50 | E22: 2.50
B23: Сахар | D23: 6.00 | E23: 6.00
B24: Молоко | D24: 90.00 | E24: 90.00
B25: Вода | D25: 108.00 | E25: 108.00
A26: Бутерброд с маслом сливочным | C26: 30/5 | F26: 2.29 | G26: 4.50 | H26: 15.51 | I26: 111.68 | K26: №1 Дели2010
B27: Батон нарезной | D27: 30.00 | E27: 30.00
B28: Масло сливочное | D28: 5.00 | E28: 5.00
A29: Итого: | C29: 400 | F29: =F13+F21+F26 -> 10.58 | G29: =G13+G21+G26 -> 13.98 | H29: 49.89 | I29: 356.99 | J29: 2.03
B30: 2 - ой ЗАВТРАК
A31: Сок (или нектар) | C31: 200 | D31: 200.00 | E31: 200.00 | F31: 1.00 | G31: 0.00 | H31: 20.18 | I31: 84.73 | J31: 4.00 | K31: №418 сб дошк 2016
A32: в ассортименте
A33: Итого: | C33: 200 | F33: =F31 -> 1.00 | G33: =G31 -> 0.00 | H33: 20.18 | I33: 84.73 | J33: 4.00
B34: ОБЕД
A36: Салат из моркови с яблоками | C36: 60 | F36: 0.65 | G36: 0.11 | H36: 5.17 | I36: 24.24 | J36: 3.75 | K36: №39,сб дошк2016
B37: морковь | D37: 56.28 | E37: 45.00
B38: яблоки | D38: 17.10 | E38: 15.00
B39: сахар | D39: 0.60 | E39: 0.60
A40: Суп картофельный с куриными фрикадельками | C40: 180/15 | F40: 3.80 | G40: 3.93 | H40: 13.30 | I40: 103.65 | J40: 8.70 | K40: №83 СБ дошк 2016
B41: цыплята - бройлеры с/м | D41: 26.3 | E41: 17.1
B42: или фарш куриный | D42: 17.9 | E42: 17.1
B43: Лук репчатый | D43: 1.79 | E43: 1.5
B44: Яйцо | D44: 1.44 | E44: 1.2
B45: Вода для фарша | D45: 1.5 | E45: 1.5
B46: соль иодированная | D46: 0.15 | E46: 0.15
B47: Масса полуфабриката | E47: 21.5
B48: масса готовых фрикаделек | E48: 15
B49: Картофель | D49: 107.73 | E49: 81.00
B50: Морковь | D50: 9.00 | E50: 7.20
B51: Лук репчатый | D51: 8.64 | E51: 7.20
B52: Масло растительное | D52: 1.80 | E52: 1.80
B53: соль иодированная | D53: 0.60 | E53: 0.60
B54: Вода | D54: 126.00 | E54: 126.00
A55: Котлеты рубленые из говядины | C55: 70 | F55: 8.03 | G55: 10.70 | H55: 9.16 | I55: 179.20 | K55: СБ дошкольн. №299, 2016
B56: говядина б/к (котлетное мясо) | D56: 51.16 | E56: 49
B57: или фарш говяжий | D57: 51.45 | E57: 49
B58: Лук репчатый | D58: 14.64 | E58: 12.3
B59: Хлеб пшеничный | D59: 11 | E59: 11
B60: Вода | D60: 14.7 | E60: 14.7
B61: Сухари панировочные | D61: 4.00 | E61: 4.00
B62: соль иодированная | D62: 0.7 | E62: 0.7
B63: масса полуфабриката | E63: 75.3
B64: масло растительное | D64: 1 | E64: 1
A65: Капуста тушеная | C65: 130 | F65: 2.65 | G65: 4.78 | H65: 10.26 | I65: 100.10 | J65: 22.20 | K65: № 303 сб шк 2017
B66: капуста свежая | D66: 186.30 | E66: 149.00
B67: масло растительное | D67: 4.55 | E67: 4.55
B68: морковь | D68: 3.25 | E68: 2.60
B69: лук репчатый | D69: 6.19 | E69: 5.20
B70: томатная паста | D70: 3.12 | E70: 3.12
B71: мука пшеничная | D71: 1.56 | E71: 1.56
B72: сахар | D72: 1.00 | E72: 1.00
B73: соль йодированная | D73: 0.50 | E73: 0.50
A74: Напиток из сухофруктов | C74: 180 | F74: 0.60 | G74: 0.08 | H74: 20.81 | I74: 68 | J74: 0.65 | K74: №394 Сб дошк 2016
B75: сухофрукты | D75: 15.30 | E75: 15.00
B76: Сахар | D76: 6.00 | E76: 6.00
B77: вода | D77: 183.00 | E77: 183.00
A78: Хлеб пшеничный | C78: 20 | D78: 20.00 | E78: 20.00 | F78: 1.52 | G78: 0.16 | H78: 9.85 | I78: 47.3 | J78: 0 | K78: табл 6 стр 134,Дели + 2012
A79: Хлеб ржаной | C79: 50 | D79: 50.00 | E79: 50.00 | F79: 3.30 | G79: 0.60 | H79: 19.82 | I79: 99.10 | K79: табл 6 стр 144,Дели + 2012
A80: Итого: | C80: 705 | F80: =F36+F40+F55+F65+F74+F78+F79 -> 20.55 | G80: =G36+G40+G55+G65+G74+G78+G79 -> 20.36 | H80: 88.36 | I80: 621.80 | J80: 35.30
B81: ПОЛДНИК
A82: Кисломолочный напиток | C82: 180/3 | F82: 2.70 | G82: 3.10 | H82: 13.55 | I82: 91.32 | J82: 1.26 | K82: №420 СБ дошк 2016
A83: (Кефир,ряженка,катык,напиток ацидофильный/йогурт) | B83: кисломолочный напиток | D83: 185.00 | E83: 180.00
B84: сахар | D84: 3.00 | E84: 3.00
A85: Кондитерское изделие | B85: вафли | C85: 20 | D85: 20.00 | E85: 20.00 | F85: 0.79 | G85: 6.12 | H85: 12.51 | I85: 108.40 | K85: табл 10 стр 202, Ддели +,2012
A86: Итого: | C86: 203 | F86: =F82+F85 -> 3.49 | G86: =G82+G85 -> 9.22 | H86: 26.06 | I86: 199.72 | J86: 1.26
B87: УЖИН
A88: Пудинг рыбный | C88: 60/20 | F88: 10.11 | G88: 7.85 | H88: 17.98 | I88: 174.03 | J88: 0.46 | K88: №286 СБ дошк 2016
B89: рыба (минтай с/м БГ) | D89: 68.34 | E89: 50.25
B90: масса отварной рыбы | E90: 39.75
B91: Хлеб пшеничный | D91: 8.25 | E91: 8.25
B92: яйцо | D92: 6.3 | E92: 5.25
B93: молоко | D93: 12 | E93: 12
B94: масло сливочное | D94: 2.25 | E94: 2.25
B95: соль иодированная | D95: 0.4 | E95: 0.4
B96: Масло растительное | D96: 1 | E96: 1
B97: масса пудинга | E97: 60
B98: Соус молочный
B99: молоко | D99: 10 | E99: 10
B100: масло сливочное | D100: 1.1 | E100: 1.1
B101: Мука пшеничная | D101: 1.1 | E101: 1.1
B102: Вода | D102: 10 | E102: 10
B103: Сахар | D103: 0.2 | E103: 0.2
B104: соль иодированная | D104: 0.13 | E104: 0.13
B105: масса соуса | E105: 20
A106: Пюре Картофельное | C106: 140 | F106: 2.86 | G106: 4.48 | H106: 25.08 | I106: 148.15 | J106: 16.96 | K106: № 339 СБ дошк 2016
B107: Картофель | D107: 159.60 | E107: 119.70
B108: Молоко | D108: 22.12 | E108: 21.00
B109: Масло сливочное | D109: 5.00 | E109: 5.00
B110: соль иодированная | D110: 0.52 | E110: 0.52
A111: Чай с сахаром | C111: 180/6 | F111: 0.06 | G111: 0.02 | H111: 6.01 | I111: 23.94 | J111: 0.03 | K111: № 392 Дели 2010
B112: чай весовой | D112: 0.45 | E112: 0.45
B113: сахар | D113: 6.00 | E113: 6.00
B114: Вода | D114: 180.00 | E114: 180.00
A115: Хлеб пшеничный | C115: 35 | D115: 35.00 | E115: 35.00 | F115: 2.66 | G115: 0.28 | H115: 17.23 | I115: 82.33 | J115: 0.00 | K115: табл 6 стр 134,Дели + 2012
A116: Итого: | C116: 441 | F116: =F88+F106+F111+F115 -> 15.69 | G116: =G88+G106+G111+G115 -> 12.63 | H116: 66.31 | I116: 428.45 | J116: 17.45
A117: ВСЕГО: | C117: =C29+C33+C80+C86+C116 -> 1949.00 | F117: =F29+F33+F80+F86+F116 -> 51.31 | G117: 56.20 | H117: 250.80 | I117: 1691.69 | J117: 60.04
A119: День 2- ой
A120: Наименование блюд и | C120: Масса | D120: Кол - во | E120: Кол - во | F120: Пищевые вещества | I120: Энергетическая | J120: Витамин | K120: Сборник
A121: продуктов | C121: порции | D121: (в гр ) | E121: (в гр ) | I121: ценность | K121: рецептур
D122: брутто | E122: нетто | F122: белки | G122: жиры | H122: угл-ды | I122: Ккал | J122: С
B123: ЗАВТРАК
A124: Каша полбяная молочная с маслом сливочным | C124: 180/3 | F124: 3.73 | G124: 3.61 | H124: 30.86 | I124: 183.44 | J124: 0.86 | K124: ТТК №1Д
B125: Крупа полбяная | D125: 22.50 | E125: 22.50
B126: Молоко | D126: 90.00 | E126: 90.00
B127: вода | D127: 68.00 | E127: 68.00
B128: Сахар | D128: 2.50 | E128: 2.50
B129: соль иодированная | D129: 0.50 | E129: 0.50
B130: Масло сливочное | D130: 3.00 | E130: 3.00
A131: Какао с молоком | C131: 180 | F131: 3.67 | G131: 3.19 | H131: 5.99 | I131: 58.83 | J131: 1.43 | K131: №397 Дели2010
B132: Какао-порошок | D132: 2.00 | E132: 2.00
B133: Сахар | D133: 6.00 | E133: 6.00
B134: Молоко | D134: 110.00 | E134: 110.00
B135: Вода | D135: 80.00 | E135: 80.00
A136: Бутерброд с сыром, маслом сливочным | C136: 30/15/5 | F136: 6.27 | G136: 7.83 | H136: 14.83 | I136: 155.00 | J136: 0.04 | K136: №3 сб дошк2016
B137: Батон нарезной | D137: 30.00 | E137: 30.00
B138: Сыр | D138: 15.30 | E138: 15.00
B139: Масло сливочное | D139: 5.00 | E139: 5.00
A140: Итого: | C140: 413 | F140: =F124+F131+F136 -> 13.67 | G140: =G124+G131+G136 -> 14.63 | H140: 51.68 | I140: 397.27 | J140: 2.33
B141: 2 - ой ЗАВТРАК
A142: Фрукты свежие | C142: 100 | D142: 100 | E142: 100 | F142: 0.40 | G142: 0.40 | H142: 9.80 | I142: 47.00 | J142: 10.00 | K142: №386 СБ
A143: (яблоки,или апельсин, или банан,или мандарин ) | K143: дошк.2016
A144: Итого: | C144: 100 | F144: =F142 -> 0.40 | G144: =G142 -> 0.40 | H144: 9.80 | I144: 47.00 | J144: 10.00
B145: ОБЕД
A146: Салат из картофеля с солеными огурцами | C146: 60 | F146: 0.73 | G146: 4.70 | H146: 5.38 | I146: 66.83 | J146: 3.62 | K146: №23 сб дошк2016
B147: огурцы соленые | D147: 32.76 | E147: 18.00
B148: картофель | D148: 32.90 | E148: 24.00
B149: морковь | D149: 15.36 | E149: 12.00
B150: лук репчатый | D150: 3.60 | E150: 3.00
B151: масло растительное | D151: 3.00 | E151: 3.00
A152: Борщ со свежей капустой, картофелем на курином бульоне , со сметаной | C152: 180/7 | F152: 1.48 | G152: 4.59 | H152: 8.12 | I152: 85.97 | J152: 7.71 | K152: №110, сб шк2004
B153: Капуста свежая | D153: 20.00 | E153: 16.00
B154: Картофель | D154: 21.28 | E154: 16.00
B155: Морковь | D155: 12.50 | E155: 10.00
B156: Лук репчатый | D156: 9.52 | E156: 8.00
B157: Свекла | D157: 41.00 | E157: 32.00
B158: Сахар | D158: 2.40 | E158: 2.40
B159: Томат-паста | D159: 1.00 | E159: 1.00
B160: Масло растительное | D160: 4.00 | E160: 4.00
B161: соль иодированная | D161: 2.00 | E161: 2.00
B162: Бульон | D162: 140.00 | E162: 140.00
B163: Сметана | D163: 7.00 | E163: 7.00
A164: Плов из отварной птицы | C164: 200 | F164: 11.19 | G164: 10.93 | H164: 31.80 | I164: 282.55 | J164: 0.18 | K164: №443,сбшк2004
B165: цыплята - бройлер с/м | D165: 85.30 | E165: 80.5
B166: масса отварной мякоти птицы | E166: 35.0
B167: масло сливочное | D167: 6.0 | E167: 6.0
B168: Лук репчатый | D168: 11.9 | E168: 10.0
B169: Морковь | D169: 18.75 | E169: 15.0
B170: Крупа рисовая | D170: 42.0 | E170: 42.0
B171: вода | D171: 89.0 | E171: 89.0
B172: соль иодированная | D172: 0.4 | E172: 0.4
B173: масса гарнира | E173: 165.0
A174: Кисель | C174: 180 | F174: 0.51 | G174: 0.05 | H174: 12.20 | I174: 51.33 | J174: 0.99 | K174: № 648, сб шк2004
B175: Кисель-концентрат | D175: 21.00 | E175: 21.00
B176: Сахар | D176: 6.00 | E176: 6.00
B177: вода | D177: 180.00 | E177: 180.00
A178: Хлеб пшеничный | C178: 30 | D178: 30.00 | E178: 30.00 | F178: 2.28 | G178: 0.24 | H178: 14.77 | I178: 70.57 | J178: 0.00 | K178: табл 6 стр 134,Дели + 2012
A179: Хлеб ржаной | C179: 50 | D179: 50.00 | E179: 50.00 | F179: 3.30 | G179: 0.60 | H179: 19.82 | I179: 99.10 | K179: табл 6 стр 144,Дели + 2012
A180: Итого: | C180: 707 | F180: =F146+F152+F164+F174+F178+F179 -> 19.49 | G180: =G146+G152+G164+G174+G178+G179 -> 21.12 | H180: 92.09 | I180: 656.35 | J180: 12.50
B181: ПОЛДНИК
A182: Кисломолочный напиток | C182: 180 | F182: 2.78 | G182: 2.90 | H182: 13.30 | I182: 93.85 | J182: 0.54 | K182: №420 СБ дошк 2016
A183: (Кефир,ряженка,катык,напиток ацидофильный/йогурт) | B183: кисломолочный напиток | D183: 185 | E183: 180
A184: Булочка дорожная | C184: 70 | F184: 4.75 | G184: 9.77 | H184: 29.50 | I184: 224.70 | K184: №453 сб дошк2016
B185: Мука пшеничная | D185: 42.00 | E185: 42.00
B186: мука пшеничная на подпыл | D186: 1.40 | E186: 1.40
B187: Сахар | D187: 8.40 | E187: 8.40
B188: Масло сливочное | D188: 9.10 | E188: 9.10
B189: соль иодированная | D189: 0.42 | E189: 0.42
B190: дрожжи сухие | D190: 0.28 | E190: 0.28
B191: вода | D191: 21.40 | E191: 21.40
B192: масса полуфабриката | E192: 79.80
B193: для крошки:
B194: мука пшеничная | D194: 1.80 | E194: 1.80
B195: масло сливочное | D195: 1.50 | E195: 1.50
B196: масса крошки | E196: 3.00
B197: масло растительное для смазки изделй | D197: 1.40 | E197: 1.40
A198: Итого: | C198: 250 | F198: =F182+F184 -> 7.53 | G198: =G182+G184 -> 12.67 | H198: 42.80 | I198: 318.55 | J198: 0.54
B199: УЖИН
A200: Запеканка творожная с повидлом | C200: 130/20 | F200: 10.82 | G200: 10.06 | H200: 25.22 | I200: 272.60 | J200: 0.66 | K200: №251, сбдошк 2016
B201: Творог | D201: 121.55 | E201: 119.20
B202: Крупа манная | D202: 7.80 | E202: 7.80
B203: Яйцо | D203: 6.50 | E203: 5.42
... 840 more rows
